bitfinex/quotes_ETHUSD_20251028
["timestamp","ask_amount","ask_price","bid_price","bid_amount"]
[1761665263198,0.001,4118.0,4117.5,0.451]
[1761665263988,2.55016591,4118.0,4117.5,0.73896728]
[1761665264401,0.1218,4118.0,4117.5,0.28796728]
[1761665264565,0.1218,4118.0,4117.6,0.451]
[1761665265071,2.55016796,4118.0,4117.6,4.1698]
[1761665265400,0.1218,4118.0,4117.6,4.1698]
[1761665265584,2.55016776,4118.0,4117.7,0.451]
[1761665266187,0.1218,4118.0,4117.7,0.451]
[1761665267779,0.121,4118.0,4117.7,0.451]
[1761665267978,0.121,4118.0,4117.7,1.12292971]
[1761665268197,0.121,4118.0,4117.8,0.451]
[1761665269270,0.0002,4118.0,4117.9,6.26802225]
[1761665269669,0.0002,4118.0,4117.9,6.71902225]
[1761665270000,0.0002,4118.0,4117.9,7.70097126]
[1761665274520,0.0002,4118.0,4117.9,3.8396]
[1761665275023,2.42856328,4118.0,4117.9,3.7188]
[1761665281638,0.0002,4118.0,4117.9,3.7188]
[1761665281822,0.0002,4118.0,4117.9,4.1698]
[1761665282327,0.0002,4118.0,4117.9,3.7188]
[1761665283964,2.42865816,4117.5,4117.4,1e-08]
[1761665284445,2.86145816,4117.5,4117.4,1e-08]
[1761665285990,8.38361,4117.5,4117.4,1e-08]
[1761665289260,2.42865816,4117.5,4117.4,1e-08]
[1761665289665,0.2269,4117.9,4117.4,1e-08]
[1761665289869,2.86708122,4117.8,4117.4,1e-08]
[1761665290164,2.42865816,4117.5,4117.4,1e-08]
[1761665293229,0.0002,4118.0,4117.8,2.71651199]
[1761665293633,0.0002,4118.0,4117.9,0.4518]
[1761665294131,0.0002,4118.0,4117.9,0.1208]
[1761665294486,0.0002,4118.0,4117.9,0.5726]
[1761665297310,0.0004,4118.5,4117.9,0.5726]
[1761665297507,2.42813956,4118.4,4117.9,0.4518]
[1761665297706,2.42813956,4118.4,4118.0,0.28803259]
[1761665298246,0.0004,4118.5,4118.1,0.1618]
[1761665298444,2.42824534,4118.2,4118.1,0.1618]
[1761665298608,0.0004,4118.5,4117.4,4.35717228]
[1761665298813,2.42847602,4118.5,4117.5,2.8804144]
[1761665299134,2.42822487,4118.3,4117.6,1.19719621]
[1761665299330,0.0004,4118.5,4117.6,1.19719621]
[1761665299530,0.0004,4118.5,4117.6,0.4518]
[1761665299846,2.42827337,4118.2,4117.7,0.4518]
[1761665300151,2.42818144,4118.4,4117.7,0.4518]
[1761665300646,2.42832786,4118.1,4117.7,0.4518]
[1761665301034,0.0004,4118.5,4117.7,0.4518]
[1761665301209,2.42836108,4118.1,4117.7,0.4518]
[1761665301410,2.42820843,4118.3,4117.7,0.4518]
[1761665301615,2.42813369,4118.4,4117.7,0.4518]
[1761665301812,2.4283247,4118.1,4117.7,0.4518]
[1761665302030,2.4283247,4118.1,4117.7,0.77717362]
[1761665302229,2.4283247,4118.1,4117.8,0.4518]
[1761665302616,2.4283247,4118.1,4117.9,3.7188]
[1761665302826,2.42826377,4118.2,4117.9,3.7188]
[1761665303451,2.42834846,4118.1,4117.9,3.7188]
[1761665303752,2.42824539,4118.2,4117.9,3.7188]
[1761665303955,0.0004,4118.5,4117.9,4.16839736]
[1761665304152,2.42849345,4118.5,4117.9,4.16839736]
[1761665304357,2.42846904,4118.5,4117.9,4.16839736]
[1761665304751,0.0004,4118.5,4118.0,0.47608363]
[1761665304955,0.0004,4118.5,4118.4,0.1618]
[1761665305365,0.0004,4118.5,4118.4,6.76052742]
[1761665305523,0.0004,4118.5,4118.4,7.55409142]
[1761665305720,0.0004,4118.5,4118.4,9.10929142]
[1761665307358,0.0004,4118.5,4118.4,20.03533236]
[1761665307559,0.0004,4118.5,4118.4,20.15613236]
[1761665311030,0.001,4119.0,4118.9,0.405504]
[1761665311283,0.001,4119.0,4118.9,19.03337761]
[1761665311624,0.0102,4119.4,4119.3,4.38830092]
[1761665311975,0.0102,4119.4,4119.3,5.08425628]
[1761665312184,0.001,4119.9,4119.7,2.83286521]
[1761665312479,0.001,4119.9,4119.7,19.35827977]
[1761665312694,0.01,4120.4,4120.2,6.54937064]
[1761665312878,0.01,4120.4,4120.2,2.83257064]
[1761665313068,0.01,4120.4,4120.2,3.28437064]
[1761665314111,0.01,4120.4,4120.2,3.7168]
[1761665314683,2.85550774,4120.3,4120.2,3.7168]
[1761665314883,0.95774173,4120.3,4118.9,2.42781925]
[1761665315090,0.95774173,4120.3,4118.5,5.85889688]
[1761665315091,2.42753004,4119.5,4118.5,4.1492]
[1761665315326,2.42753004,4119.5,4118.8,2.83339521]
[1761665315527,2.42734834,4119.8,4119.0,2.42776955]
[1761665315734,2.42737758,4119.7,4118.8,0.837904]
[1761665316042,3.07804787,4119.9,4118.6,1.960704]
[1761665316043,2.42758895,4119.4,4118.9,0.52265586]
[1761665316355,2.42746482,4119.6,4118.8,2.42784948]
[1761665316556,2.42746482,4119.6,4118.8,2.42789161]
[1761665316839,2.42764925,4119.3,4118.3,1.9876]
[1761665317005,0.4275,4119.6,4118.3,0.4324]
[1761665317206,2.42730229,4119.8,4118.5,2.86045092]
[1761665317433,2.42744067,4119.6,4118.8,2.42788829]
[1761665317719,2.42743648,4119.6,4118.9,2.42782893]
[1761665318130,2.42743648,4119.6,4118.8,2.42788014]
[1761665318940,0.6508,4119.9,4118.7,2.4279487]
[1761665319138,0.6508,4119.9,4118.8,0.28603487]
[1761665319139,2.42769099,4119.2,4118.8,0.28603487]
[1761665319351,2.42769099,4119.2,4118.4,0.5942]
[1761665319714,0.2233,4119.9,4118.1,0.01]
[1761665319940,2.42801119,4118.6,4118.1,0.01]
[1761665320151,2.42759692,4119.3,4118.1,0.01]
[1761665320337,0.2233,4118.2,4118.1,0.01]
[1761665321218,2.65154534,4118.2,4118.1,0.01]
[1761665321453,0.6508,4118.2,4118.1,0.01]
[1761665322351,0.6508,4118.2,4118.1,0.1308]
[1761665322963,0.2233,4118.2,4118.1,0.1308]
[1761665323665,2.42813056,4118.4,4118.1,0.1308]
[1761665323876,2.4282234,4118.3,4118.1,0.1308]
[1761665324079,2.8557234,4118.3,4118.1,0.1308]
[1761665324260,0.4275,4118.3,4118.1,0.1308]
[1761665324449,2.42814415,4118.4,4118.1,0.1308]
[1761665324644,2.65138834,4118.5,4118.1,0.1308]
[1761665324846,2.42813423,4118.4,4118.1,0.1308]
[1761665325146,2.42818638,4118.3,4118.1,0.1308]
[1761665325459,2.85568638,4118.3,4118.1,0.1308]
[1761665325659,2.42824534,4118.2,4118.1,0.01]
[1761665325851,2.85574534,4118.2,4118.1,3.7268]
[1761665327153,3.41854411,4118.2,4118.1,3.7268]
[1761665327840,3.41854411,4118.2,4118.1,3.7288]
[1761665328440,2.42812742,4118.4,4118.1,3.7288]
[1761665328641,0.4275,4118.3,4118.1,3.7288]
[1761665328842,2.42824534,4118.2,4118.1,3.7288]
[1761665329067,2.42824534,4118.2,4118.1,0.012]
[1761665329268,2.85574534,4118.2,4118.1,0.012]
[1761665329677,2.42822242,4118.3,4118.1,0.012]
[1761665329977,0.1208,4118.2,4118.1,0.012]
[1761665330363,0.5483,4118.2,4118.1,0.012]
[1761665330904,0.1208,4118.2,4118.1,0.012]
[1761665331201,2.97654534,4118.2,4118.1,0.012]
[1761665332508,0.5483,4118.2,4118.1,0.012]
[1761665333069,2.97654534,4118.2,4118.1,0.012]
[1761665334383,3.3167931,4118.2,4118.1,0.012]
[1761665335472,2.97654534,4118.2,4118.1,0.012]
[1761665336631,0.5483,4118.2,4118.1,0.012]
[1761665336803,2.97654534,4118.2,4118.1,0.012]
[1761665338927,0.1208,4118.2,4118.1,0.012]
[1761665339112,2.54904534,4118.2,4118.1,0.012]
[1761665339310,2.97654534,4118.2,4118.1,0.012]
[1761665339510,2.54904534,4118.2,4118.1,0.012]
[1761665339710,0.1208,4118.2,4118.1,0.012]
[1761665340024,2.97654534,4118.2,4118.1,0.012]
[1761665340595,0.1208,4118.2,4118.1,3.7288]
[1761665341123,0.12,4118.2,4118.1,3.7288]
[1761665341419,2.54824534,4118.2,4118.1,3.7288]
[1761665341992,2.97574534,4118.2,4118.1,3.7288]
[1761665342519,0.12,4118.2,4118.1,3.7288]
[1761665343523,0.1208,4118.9,4118.1,4.81668]
[1761665343725,0.1208,4118.9,4118.3,2.42813478]
[1761665343888,0.2233,4119.3,4118.4,3.7168]
[1761665344087,2.42782965,4119.0,4118.6,0.1208]
[1761665344622,0.4447,4119.2,4118.6,0.1208]
[1761665345124,2.42781619,4119.0,4118.6,0.1208]
[1761665346027,0.3441,4119.3,4118.6,0.1208]
[1761665346028,2.42795056,4118.7,4118.6,0.1208]
[1761665346200,2.42795056,4118.7,4118.4,3.7168]
[1761665346400,2.87255813,4118.9,4118.4,3.7168]
[1761665346401,2.42802383,4118.6,4118.4,3.8376]
[1761665346630,0.4447,4118.9,4118.4,3.8376]
[1761665347235,2.42789161,4118.8,4118.4,3.8376]
[1761665347424,0.4447,4118.9,4118.4,3.8376]
[1761665347596,2.42799152,4118.7,4118.4,3.8376]
[1761665348001,0.4447,4118.9,4118.4,3.7168]
[1761665348220,2.42806847,4118.5,4118.4,3.7168]
[1761665348632,2.88186847,4118.5,4118.4,3.7168]
[1761665349534,0.1208,4118.4,4118.2,3.7168]
[1761665350036,2.5489413,4118.4,4118.2,3.7168]
[1761665350338,2.88198638,4118.3,4118.2,3.7168]
[1761665353451,2.42818638,4118.3,4118.2,3.7168]
[1761665353648,0.1208,4118.4,4118.2,3.7168]
[1761665353817,2.54894423,4118.4,4118.2,3.7168]
[1761665354017,2.42818638,4118.3,4118.2,3.7168]
[1761665355049,0.1208,4118.4,4118.2,3.7168]
[1761665355050,2.54894627,4118.4,4118.2,3.7168]
[1761665355354,2.42818638,4118.3,4118.1,0.012]
[1761665355536,2.42824534,4118.2,4118.1,0.012]
[1761665357458,8.48321763,4118.2,4118.1,0.012]
[1761665357621,7.48029413,4118.2,4118.1,0.012]
[1761665357961,9.95953072,4118.2,4118.1,0.012]
[1761665358318,9.95953072,4118.2,4118.1,1e-08]
[1761665359944,4.43724534,4118.2,4118.1,1e-08]
[1761665360247,5.6760125,4118.2,4118.1,1e-08]
[1761665363232,6.0815165,4118.2,4118.1,1e-08]
[1761665365752,6.0807165,4118.2,4118.1,1e-08]
[1761665369892,8.6367165,4118.2,4118.1,1e-08]
[1761665370391,8.73391464,4118.2,4118.1,1e-08]
[1761665371790,6.0807165,4118.2,4118.1,1e-08]
[1761665373491,8.6367165,4118.2,4118.1,1e-08]
[1761665373697,2.556,4117.9,4117.2,1e-08]
[1761665373861,2.42889412,4117.1,4116.7,0.002]
[1761665374201,3.98409412,4117.1,4116.7,0.002]
[1761665374395,4.43789412,4117.1,4116.7,0.002]
[1761665374783,4.84339812,4117.1,4116.7,0.002]
[1761665374968,2.83445712,4117.0,4116.9,1e-08]
[1761665375156,3.29005712,4117.0,4116.9,1e-08]
[1761665376312,2.83457512,4116.8,4116.7,1e-08]
[1761665376515,4.38977512,4116.8,4116.7,1e-08]
[1761665376709,5.78080048,4116.8,4116.7,1e-08]
[1761665376902,5.78080048,4116.8,4116.4,1e-08]
[1761665376903,0.405504,4116.5,4116.4,1e-08]
[1761665377276,4.83855214,4116.5,4116.4,1e-08]
[1761665377482,4.39012919,4116.2,4116.1,1e-08]
[1761665377781,7.82844692,4116.2,4116.1,1e-08]
[1761665378114,8.27704692,4116.2,4116.1,1e-08]
[1761665378282,8.88804692,4116.2,4116.1,1e-08]
[1761665379521,2.66111555,4115.2,4115.1,1e-08]
[1761665379693,3.12551555,4115.2,4115.1,1e-08]
[1761665379890,6.7991038,4115.2,4115.1,1e-08]
[1761665381225,4.68071555,4115.2,4115.1,1e-08]
[1761665382892,1.5552,4115.2,4115.1,1e-08]
[1761665383108,2.43001555,4115.2,4115.1,1e-08]
[1761665383512,2.89471555,4115.2,4115.1,1e-08]
[1761665383744,3.30021955,4115.2,4115.1,1e-08]
[1761665383949,4.0287541,4115.2,4115.1,1e-08]
[1761665384444,19.65718444,4115.2,4115.1,1e-08]
[1761665385723,1.5552,4115.1,4114.1,0.01]
[1761665385915,4.21690619,4114.2,4114.1,0.01]
[1761665386314,4.68160619,4114.2,4114.1,0.01]
[1761665386537,6.80014455,4114.2,4114.1,0.01]
[1761665388474,7.20564855,4114.2,4114.1,0.01]
[1761665389345,7.20564855,4114.2,4112.2,3.78]
[1761665389346,4.39172381,4113.5,4112.6,0.1349]
[1761665389880,4.39172381,4113.5,4112.8,0.4492]
[1761665390372,3.98541981,4113.5,4113.1,0.21430001]
[1761665391479,2.34963836,4114.2,4113.4,0.4992]
[1761665391480,2.11853836,4114.2,4113.4,0.4992]
[1761665391668,2.43101981,4113.5,4113.4,0.4992]
[1761665392046,2.43101981,4113.5,4113.4,0.05]
[1761665393657,2.89331981,4113.5,4113.4,0.05]
[1761665393880,4.85402381,4113.5,4113.4,0.05]
[1761665395205,2.43119712,4113.2,4113.1,1e-08]
[1761665395368,5.1541017,4113.2,4113.1,1e-08]
[1761665395684,5.6164017,4113.2,4113.1,1e-08]
[1761665396248,5.1541017,4113.2,4113.1,1e-08]
[1761665398983,3.98639712,4113.2,4113.1,0.66350001]
[1761665399159,3.98639712,4113.2,4113.1,0.21430001]
[1761665399567,3.98639712,4113.2,4113.1,1e-08]
[1761665400074,4.44869712,4113.2,4113.1,1e-08]
[1761665400273,4.85420112,4113.2,4113.1,1e-08]
[1761665400584,5.58283332,4113.2,4113.1,1e-08]
[1761665401152,8.13883332,4113.2,4113.1,1e-08]
[1761665401360,3.03925581,4112.6,4112.5,1e-08]
[1761665401553,17.11248615,4112.6,4112.5,1e-08]
[1761665401788,19.52688237,4112.6,4112.5,1e-08]
[1761665402730,21.08208237,4112.6,4112.5,1e-08]
[1761665403215,0.405504,4112.3,4111.1,0.01]
[1761665403517,18.69421418,4111.2,4111.1,0.01]
[1761665403728,2.43279406,4110.5,4110.4,0.05]
[1761665403866,18.4667284,4110.5,4110.4,1e-08]
[1761665404178,2.43291243,4110.3,4108.1,0.01]
[1761665404365,6.13999152,4110.2,4110.1,1e-08]
[1761665404568,6.59769152,4110.2,4110.1,1e-08]
[1761665404787,2.43280201,4110.5,4110.1,1e-08]
[1761665405002,2.4328982,4110.4,4110.2,0.4604]
[1761665405309,2.43290511,4110.4,4110.1,1e-08]
[1761665405528,1.5552,4111.1,4110.1,0.62220001]
[1761665405668,2.43292551,4110.3,4110.1,0.62220001]
[1761665406004,0.405504,4110.9,4110.1,1e-08]
[1761665406302,2.43297163,4110.2,4110.1,1e-08]
[1761665406508,2.91955765,4110.2,4110.1,1e-08]
[1761665406730,4.88026165,4110.2,4110.1,1e-08]
[1761665406869,5.33986165,4110.2,4110.1,1e-08]
[1761665407386,19.41309199,4110.2,4110.1,1e-08]
[1761665407911,0.405504,4110.0,4109.1,0.01]
[1761665408213,3.98823082,4110.1,4109.1,0.01]
[1761665408214,4.62106771,4109.2,4109.1,0.01]
[1761665408368,5.07126771,4109.2,4109.1,0.01]
[1761665408995,4.62106771,4109.2,4109.1,0.01]
[1761665409195,2.43356371,4109.2,4109.1,0.01]
[1761665409511,3.99919225,4109.2,4109.1,0.01]
[1761665410073,3.54899225,4109.2,4109.1,0.01]
[1761665410277,3.14348825,4109.2,4109.1,0.01]
[1761665410589,0.1846,4109.9,4109.1,0.1846]
[1761665410908,16.99279443,4110.2,4109.1,0.6431]
[1761665411109,2.43356371,4109.2,4109.1,0.01]
[1761665411427,4.39426771,4109.2,4109.1,0.01]
[1761665411625,4.84446771,4109.2,4109.1,0.01]
[1761665411921,5.57226274,4109.2,4109.1,0.01]
[1761665412427,5.57226274,4109.2,4108.1,0.1846]
[1761665412428,2.43415607,4108.2,4108.1,0.01]
[1761665412777,2.4345709,4107.5,4107.4,0.05]
[1761665412971,0.405504,4108.4,4107.4,0.05]
[1761665413214,2.4345709,4107.5,4107.4,0.05]
[1761665413710,1.5552,4107.6,4107.4,0.5085]
[1761665413711,2.43451318,4107.6,4107.4,0.5085]
[1761665413910,2.4345709,4107.5,4107.4,0.5085]
[1761665414080,2.43455876,4107.6,4107.4,0.5085]
[1761665414275,2.4345709,4107.5,4107.4,0.05]
[1761665414489,1.62562343,4108.3,4107.5,0.4585]
[1761665414691,2.43385985,4108.7,4107.5,0.4585]
[1761665414890,2.43440344,4107.8,4107.5,0.4585]
[1761665415106,2.4344572,4107.7,4107.5,0.4585]
[1761665415299,2.4345709,4107.5,4107.4,0.05]
[1761665416175,1.5552,4107.5,4107.4,0.05]
[1761665416393,3.9897709,4107.5,4107.4,0.05]
[1761665416594,4.8432749,4107.5,4107.4,0.05]
[1761665417213,2.408704,4107.4,4107.1,1e-08]
[1761665417415,18.46868307,4107.2,4107.1,1e-08]
[1761665417622,3.98994873,4107.2,4107.1,1e-08]
[1761665418315,4.84345273,4107.2,4107.1,1e-08]
[1761665419221,2.43486729,4107.0,4106.9,0.002]
[1761665419381,2.43486729,4107.0,4106.1,1e-08]
[1761665419382,0.632304,4106.2,4106.1,1e-08]
[1761665419584,4.62284567,4106.2,4106.1,1e-08]
[1761665419918,19.81588238,4106.2,4106.1,1e-08]
[1761665420816,4.39604567,4106.2,4106.1,1e-08]
[1761665421317,4.84404567,4106.2,4106.1,1e-08]
[1761665421509,5.57197635,4106.2,4106.1,1e-08]
[1761665422251,20.31701306,4106.2,4106.1,1e-08]
[1761665422604,3.99113491,4105.2,4105.1,0.01]
[1761665422805,3.99113491,4105.2,4105.1,0.1449]
[1761665423127,2.88340098,4106.1,4105.1,0.1449]
[1761665423128,2.66190275,4106.7,4105.1,0.6034]
[1761665423295,2.43569365,4105.7,4105.1,0.6034]
[1761665423495,0.405504,4106.1,4105.1,0.6034]
[1761665423696,0.2268,4106.7,4105.2,0.4585]
[1761665424124,2.43558075,4105.8,4105.2,0.4585]
[1761665424457,0.6722,4106.7,4105.1,0.01]
[1761665424458,2.43593491,4105.2,4105.1,0.01]
[1761665424658,3.0850324,4105.2,4105.1,0.01]
[1761665424829,4.6402324,4105.2,4105.1,0.01]
[1761665425627,4.6402324,4105.2,4105.1,1e-08]
[1761665425628,5.0856324,4105.2,4105.1,1e-08]
[1761665426371,19.83066911,4105.2,4105.1,1e-08]
[1761665428024,2.43635034,4104.5,4104.4,1e-08]
[1761665428320,19.14209105,4104.5,4104.4,1e-08]
[1761665428544,19.58749105,4104.5,4104.4,1e-08]
[1761665428744,19.58749105,4104.5,4104.1,1e-08]
[1761665428745,0.405504,4104.3,4104.1,1e-08]
[1761665429060,6.46696154,4104.2,4104.1,1e-08]
[1761665429241,3.99172843,4104.2,4104.1,1e-08]
[1761665429560,1.5552,4104.2,4104.1,0.63310001]
[1761665429759,15.19043671,4105.5,4104.1,0.63310001]
[1761665429918,0.63310001,4106.5,4105.1,0.1349]
[1761665430121,0.63310001,4106.5,4106.4,0.1746]
[1761665430344,0.63310001,4106.5,4105.2,0.4585]
[1761665430345,2.43516376,4106.5,4105.2,0.4585]
[1761665430547,0.4554,4107.4,4105.3,0.1746]
[1761665430548,0.01,4106.4,4105.3,0.1746]
[1761665430953,0.01,4106.4,4105.4,0.4585]
[1761665431147,0.05,4105.9,4105.3,0.1746]
[1761665431346,0.05,4105.9,4105.5,0.4585]
[1761665432042,0.05,4105.9,4105.6,2.43564266]
[1761665432218,0.05,4105.9,4105.5,0.4585]
[1761665432617,0.1216,4105.8,4105.5,0.4585]
[1761665433150,2.43581624,4105.4,4105.3,0.1746]
[1761665433322,0.49931443,4105.4,4105.1,0.1349]
[1761665433523,2.43582769,4105.4,4105.1,0.5934]
[1761665433859,0.05,4105.9,4105.1,0.5934]
[1761665434021,0.05,4105.9,4105.1,0.1349]
[1761665434461,0.05,4105.9,4105.5,0.002]
[1761665434930,0.05,4105.9,4105.6,0.4325]
[1761665436331,2.48552309,4105.9,4105.6,0.4325]
[1761665436719,2.43559188,4105.8,4105.6,0.4325]
[1761665436928,2.43569758,4105.6,4105.5,0.002]
[1761665437327,0.24855919,4105.8,4105.5,0.002]
[1761665437556,2.43569758,4105.6,4105.5,0.002]
[1761665437769,0.24855919,4105.8,4105.5,0.002]
[1761665437965,0.05,4105.9,4105.5,0.002]
[1761665438168,0.05,4105.9,4105.5,0.4345]
[1761665438371,2.43565398,4105.7,4105.5,0.4345]
[1761665438669,0.05,4105.9,4105.5,0.4345]
[1761665438670,2.43557893,4105.8,4105.5,0.4345]
[1761665438848,2.43565319,4105.7,4105.5,0.4345]
[1761665439168,0.49211796,4105.7,4105.5,0.002]
[1761665439369,0.05,4105.9,4105.5,0.4345]
[1761665439969,2.48553397,4105.9,4105.5,0.4345]
[1761665440274,0.05,4105.9,4105.5,0.4345]
[1761665440476,2.48554478,4105.9,4105.5,0.4345]
[1761665440680,0.05,4105.9,4105.5,0.4345]
[1761665440882,2.43557961,4105.8,4105.5,0.4345]
[1761665441048,0.05,4105.9,4105.5,0.4345]
[1761665441247,2.48552262,4105.9,4105.5,0.4345]
[1761665441480,0.05,4105.9,4105.5,0.4345]
[1761665441980,0.05,4105.9,4105.5,2.87024682]
[1761665442289,0.05,4105.9,4105.6,2.96629119]
[1761665442457,0.05,4105.9,4105.6,0.4325]
[1761665442666,0.05,4105.9,4105.7,0.4325]
[1761665444184,0.05,4105.9,4105.5,0.002]
[1761665444185,0.1216,4105.7,4105.5,0.002]
[1761665444385,0.1216,4105.7,4105.6,0.4325]
[1761665445288,0.05,4105.9,4105.6,2.86819758]
[1761665445583,0.05,4105.9,4105.8,2.43557893]
[1761665445998,0.05,4105.9,4105.8,2.86807893]
[1761665448711,2.43563779,4105.8,4105.5,0.002]
[1761665448863,2.43568114,4105.7,4105.5,0.002]
[1761665449068,0.49212052,4105.7,4105.5,0.002]
[1761665449468,0.05,4105.9,4105.5,0.002]
[1761665449670,0.05,4105.9,4105.5,0.4345]
[1761665449978,0.05,4105.9,4105.5,2.87020902]
[1761665450191,0.05,4105.9,4105.5,0.4345]
[1761665450497,0.05,4105.9,4105.5,0.002]
[1761665451603,2.43557893,4105.8,4105.5,0.002]
[1761665452106,0.49210407,4105.8,4105.5,0.002]
[1761665452279,2.43569758,4105.6,4105.5,0.002]
[1761665452884,2.89329758,4105.6,4105.5,0.002]
[1761665453786,2.43569758,4105.6,4105.5,0.002]
[1761665454397,0.051,4105.9,4105.5,0.002]
[1761665454905,2.43558831,4105.8,4105.5,0.002]
[1761665455078,2.48652581,4105.9,4105.5,0.002]
[1761665455279,0.54328878,4105.9,4105.5,0.002]
[1761665455475,2.43558026,4105.8,4105.5,0.002]
[1761665455680,0.051,4105.9,4105.5,0.002]
[1761665455880,2.48656591,4105.9,4105.5,0.002]
[1761665456075,2.43568327,4105.7,4105.5,0.002]
[1761665456301,0.051,4105.9,4105.5,0.002]
[1761665456987,0.29973495,4105.9,4105.5,0.002]
[1761665457184,2.43563088,4105.8,4105.5,0.002]
[1761665457395,0.051,4105.9,4105.5,0.002]
[1761665458194,0.051,4105.9,4105.5,0.4345]
[1761665458395,0.051,4105.9,4105.5,0.002]
[1761665458785,2.43569758,4105.6,4105.5,0.002]
[1761665459022,2.92792523,4105.6,4105.5,0.002]
[1761665459227,3.38552523,4105.6,4105.5,0.002]
[1761665460626,2.92792523,4105.6,4105.5,0.002]
[1761665460796,0.27,4105.9,4105.5,0.002]
[1761665460797,2.4865217,4105.9,4105.5,0.002]
[1761665461121,2.43569758,4105.6,4105.5,0.002]
[1761665461621,2.89329758,4105.6,4105.5,0.002]
[1761665461828,4.85400158,4105.6,4105.5,0.002]
[1761665462068,2.84149825,4105.1,4105.0,1e-08]
[1761665462349,2.43630378,4104.6,4104.1,0.00200001]
[1761665462646,4.21072843,4104.2,4104.1,0.00200001]
[1761665463144,5.07383243,4104.2,4104.1,0.00200001]
[1761665463329,7.33991071,4104.2,4104.1,0.00200001]
[1761665463530,6.47680671,4104.2,4104.1,0.00200001]
[1761665463731,4.20992843,4104.2,4104.1,0.00200001]
[1761665464033,2.89412843,4104.2,4104.1,0.00200001]
[1761665464433,19.59986914,4104.2,4104.1,0.00200001]
[1761665465410,2.43712224,4103.2,4103.1,0.01]
[1761665465836,0.850904,4104.1,4103.1,0.01]
[1761665465837,0.227,4103.6,4103.1,0.01]
[1761665466069,2.43712224,4103.2,4103.1,0.01]
[1761665466274,2.43656544,4104.2,4103.1,0.6133]
[1761665466458,0.26635654,4104.2,4103.1,0.6133]
[1761665466647,2.43686927,4103.7,4103.1,0.1726]
[1761665466838,0.4454,4104.2,4103.1,0.1726]
[1761665467034,0.227,4104.3,4103.1,0.1726]
[1761665467233,2.43664986,4104.0,4103.2,0.4407]
[1761665467548,2.43697802,4103.5,4103.1,0.1726]
[1761665467747,0.4593,4104.2,4103.2,0.4576]
[1761665467748,2.43658638,4104.2,4103.2,0.4576]
[1761665467960,2.2335,4104.8,4103.2,3.20145144]
[1761665468163,2.2335,4104.8,4103.1,0.1726]
[1761665468164,2.0145,4104.7,4103.1,0.1726]
[1761665468367,2.43688876,4103.6,4103.1,0.1726]
[1761665468553,2.43629099,4104.6,4103.1,0.1726]
[1761665468554,2.43663209,4104.1,4103.1,0.1726]
[1761665468752,2.43659695,4104.1,4103.2,0.4576]
[1761665469057,0.457,4105.5,4103.2,0.4576]
[1761665469379,1.49720367,4104.9,4103.2,0.4576]
[1761665469585,2.43593491,4105.2,4103.7,2.43682464]
[1761665469758,1.7871,4105.3,4103.2,0.4576]
[1761665469942,2.43617004,4104.9,4103.9,2.43670277]
[1761665470139,0.2319,4105.3,4103.9,2.43665936]
[1761665470337,0.2319,4105.3,4104.0,0.4576]
[1761665470600,0.5320758,4105.3,4104.0,0.4576]
[1761665470746,0.3001758,4105.3,4104.1,0.1746]
[1761665471082,0.1216,4104.5,4104.2,2.43652843]
[1761665471269,2.43589245,4105.3,4105.2,0.1349]
[1761665471479,0.1216,4104.9,4104.3,2.89406198]
[1761665471800,0.1216,4104.9,4104.3,0.4576]
[1761665472078,0.01,4105.4,4105.2,2.43593271]
[1761665472442,0.01,4105.4,4105.3,2.89347557]
[1761665472891,0.01,4105.4,4105.3,0.4576]
[1761665473195,0.01,4105.4,4105.3,3.30686707]
[1761665474070,0.01,4105.4,4105.3,3.18526707]
[1761665474282,0.0752,4105.5,4105.4,4.85412024]
[1761665474283,1e-08,4105.5,4105.4,4.85412024]
[1761665474483,1e-08,4105.5,4105.4,19.59915695]
[1761665475002,1e-08,4106.2,4106.1,0.1746]
[1761665475211,1e-08,4106.2,4106.1,18.91023769]
[1761665475377,1e-08,4106.2,4106.1,19.36783769]
[1761665475904,1e-08,4106.4,4106.3,2.43528237]
[1761665476106,0.05,4108.9,4106.4,4.87044612]
[1761665476404,0.05,4108.9,4107.0,18.735104]
[1761665476706,0.05,4108.9,4107.0,19.140608]
[1761665476862,0.05,4108.9,4107.0,19.598208]
[1761665477265,0.05,4108.9,4108.3,2.43409682]
[1761665477507,0.05,4108.9,4108.3,3.18348832]
[1761665477817,0.05,4108.9,4108.3,4.73868832]
[1761665478368,0.05,4108.9,4108.3,0.7493915]
[1761665478569,0.05,4108.9,4108.2,0.1548]
[1761665478802,0.05,4108.9,4108.3,0.4576]
[1761665479409,0.05,4108.9,4108.4,1.5552]
[1761665479625,0.05,4108.9,4108.3,0.4576]
[1761665479764,0.05,4108.9,4108.5,2.4339268]
[1761665479963,0.05,4108.9,4108.6,0.28915268]
[1761665480164,0.05,4108.9,4108.3,0.4576]
[1761665480619,0.02564315,4108.9,4108.3,0.4576]
[1761665480855,0.02564315,4108.9,4108.3,2.89169491]
[1761665481160,0.02564315,4108.9,4108.5,2.43394078]
[1761665481455,0.02564315,4108.9,4108.2,0.1548]
[1761665481456,0.02564315,4108.9,4108.4,2.87133188]
[1761665481623,0.02564315,4108.9,4108.4,3.17394507]
[1761665481828,0.02564315,4108.9,4108.5,0.4373]
[1761665482848,0.02564315,4108.9,4108.6,2.43391206]
[1761665483174,0.02564315,4108.9,4108.7,0.4373]
[1761665483478,0.02564315,4108.9,4108.2,0.1548]
[1761665483972,0.02564315,4108.9,4108.7,0.1216]
[1761665484181,0.02564315,4108.9,4108.8,2.87110062]
[1761665484381,0.02564315,4108.9,4108.8,2.99270062]
[1761665484580,0.02564315,4108.9,4108.8,0.5589]
[1761665484761,0.02564315,4108.9,4108.8,2.99270062]